lending/lending_fUSD_20241007
["ID","MTS","AMOUNT","RATE_DAILY","PERIOD"]
[339994680,1728295845653,-150.0,0.00036019,2]
[339994681,1728295845663,-150.0,0.00036026,2]
[339994682,1728295845672,-150.0,0.00036027,2]
[339994683,1728295845681,-150.0,0.00036038,2]
[339994684,1728295845691,-150.0,0.00036049,2]
[339994685,1728295845701,-151.0,0.00036063,7]
[339994686,1728295845711,-220.17020822,0.00036064,2]
[339994687,1728295845721,-161.9430374,0.00036064,8]
[339994688,1728295845730,-150.0,0.00036088,2]
[339994689,1728295845739,-150.0,0.00036099,2]
[339994690,1728295845749,-150.0,0.00036103,2]
[339994691,1728295845758,-150.0,0.00036108,2]
[339994692,1728295845768,-150.0,0.00036109,2]
[339994693,1728295845778,-150.0,0.00036118,2]
[339994694,1728295845787,-150.0,0.00036145,2]
[339994695,1728295845797,-150.0,0.00036154,2]
[339994696,1728295845806,-221130.10135599,0.00036164,36]
[339994697,1728295845816,-500.0,0.00036164,2]
[339994698,1728295845825,-500.0,0.00036164,2]
[339994699,1728295845839,-500.0,0.00036164,2]
[339994700,1728295845852,-500.0,0.00036164,2]
[339994701,1728295845862,-500.0,0.00036164,2]
[339994702,1728295845871,-500.0,0.00036164,2]
[339994703,1728295845880,-500.0,0.00036164,2]
[339994704,1728295845890,-879.25,0.00036164,2]
[339994705,1728295845899,-500.0,0.00036164,2]
[339994706,1728295845908,-500.0,0.00036164,2]
[339994707,1728295845917,-151.0,0.00036164,7]
[339994708,1728295846022,-151.0,0.00036164,7]
[339994709,1728295846031,-500.0,0.00036164,2]
[339994710,1728295846041,-500.0,0.00036164,2]
[339994711,1728295846050,-832.07,0.00036164,2]
[339994712,1728295846060,-500.0,0.00036164,2]
[339994713,1728295846069,-500.0,0.00036164,2]
[339994714,1728295846079,-500.0,0.00036164,2]
[339994715,1728295846088,-500.0,0.00036164,2]
[339994716,1728295846100,-500.0,0.00036164,2]
[339994717,1728295846109,-500.0,0.00036164,2]
[339994718,1728295846119,-767.12,0.00036164,2]
[339994719,1728295846129,-1284.48,0.00036164,2]
[339994720,1728295846139,-500.0,0.00036164,2]
[339994722,1728295846148,-500.0,0.00036164,2]
[339994724,1728295846158,-500.0,0.00036164,2]
[339994725,1728295846167,-500.0,0.00036164,2]
[339994727,1728295846176,-500.0,0.00036164,2]
[339994729,1728295846186,-1116.95,0.00036164,2]
[339994731,1728295846195,-500.0,0.00036164,2]
[339994733,1728295846205,-500.0,0.00036164,2]
[339994735,1728295846214,-764.7,0.00036164,2]
[339994737,1728295846223,-500.0,0.00036164,2]
[339994739,1728295846233,-775.76,0.00036164,2]
[339994740,1728295846242,-500.0,0.00036164,2]
[339994742,1728295846251,-500.0,0.00036164,2]
[339994744,1728295846261,-500.0,0.00036164,2]
[339994746,1728295846271,-2242.98,0.00036164,2]
[339994748,1728295846280,-500.0,0.00036164,2]
[339994750,1728295846289,-500.0,0.00036164,2]
[339994752,1728295846299,-500.0,0.00036164,2]
[339994754,1728295846308,-500.0,0.00036164,2]
[339994756,1728295846317,-578.66,0.00036164,2]
[339994758,1728295846327,-500.0,0.00036164,2]
[339994760,1728295846345,-317.38,0.00036164,2]
[339994761,1728295846354,-500.0,0.00036164,2]
[339994763,1728295846364,-500.0,0.00036164,2]
[339994765,1728295846373,-500.0,0.00036164,2]
[339994767,1728295846382,-560.68,0.00036164,2]
[339994769,1728295846392,-500.0,0.00036164,2]
[339994771,1728295846402,-500.0,0.00036164,2]
[339994773,1728295846411,-500.0,0.00036164,2]
[339994775,1728295846420,-500.0,0.00036164,2]
[339994776,1728295846429,-500.0,0.00036164,2]
[339994778,1728295846438,-500.0,0.00036164,2]
[339994780,1728295846447,-500.0,0.00036164,2]
[339994782,1728295846457,-500.0,0.00036164,2]
[339994784,1728295846466,-850.87,0.00036164,2]
[339994786,1728295846476,-500.0,0.00036164,2]
[339994788,1728295846486,-560.68,0.00036164,2]
[339994789,1728295846494,-500.0,0.00036164,2]
[339994791,1728295846504,-500.0,0.00036164,2]
[339994793,1728295846514,-500.0,0.00036164,2]
[339994795,1728295846523,-233.95371278,0.00036164,2]
[339994797,1728295846533,-500.0,0.00036164,2]
[339994799,1728295846543,-500.0,0.00036164,2]
[339994800,1728295846552,-500.0,0.00036164,2]
[339994801,1728295846562,-500.0,0.00036164,2]
[339994802,1728295846571,-500.0,0.00036164,2]
[339994803,1728295846581,-500.0,0.00036164,2]
[339994804,1728295846591,-500.0,0.00036164,2]
[339994805,1728295846601,-500.0,0.00036164,2]
[339994807,1728295846610,-500.0,0.00036164,2]
[339994808,1728295846621,-3437.809723,0.00036164,7]
[339994809,1728295846631,-500.0,0.00036164,2]
[339994810,1728295846642,-500.0,0.00036164,2]
[339994811,1728295846651,-3437.809723,0.00036164,7]
[339994812,1728295846661,-500.0,0.00036164,2]
[339994813,1728295846670,-500.0,0.00036164,2]
[339994814,1728295846680,-589.58,0.00036164,2]
[339994815,1728295846691,-660.06,0.00036164,2]
[339994816,1728295846701,-500.0,0.00036164,2]
[339994817,1728295846711,-500.0,0.00036164,2]
[339994818,1728295846720,-500.0,0.00036164,2]
[339994819,1728295846729,-500.0,0.00036164,2]
[339994820,1728295846740,-500.0,0.00036164,2]
[339994821,1728295846750,-500.0,0.00036164,2]
[339994822,1728295846760,-500.0,0.00036164,2]
[339994823,1728295846769,-500.0,0.00036164,2]
[339994824,1728295846779,-500.0,0.00036164,2]
[339994825,1728295846788,-504.02,0.00036164,2]
[339994826,1728295846797,-500.0,0.00036164,2]
[339994827,1728295846807,-500.0,0.00036164,2]
[339994828,1728295846816,-500.0,0.00036164,2]
[339994829,1728295846826,-500.0,0.00036164,2]
[339994830,1728295846837,-500.0,0.00036164,2]
[339994831,1728295846847,-587.38,0.00036164,2]
[339994832,1728295846857,-10000.0,0.00036164,7]
[339994833,1728295846867,-500.0,0.00036164,2]
[339994834,1728295846876,-500.0,0.00036164,2]
[339994835,1728295846886,-274.109992,0.00036164,7]
[339994836,1728295846895,-10000.0,0.00036164,7]
[339994837,1728295846905,-10000.0,0.00036164,7]
[339994838,1728295846914,-500.0,0.00036164,2]
[339994839,1728295846924,-10000.0,0.00036164,7]
[339994840,1728295846934,-500.0,0.00036164,2]
[339994841,1728295846943,-10000.0,0.00036164,7]
[339994842,1728295846953,-711.71,0.00036164,2]
[339994843,1728295846963,-646.3,0.00036164,2]
[339994844,1728295846973,-500.0,0.00036164,2]
[339994845,1728295846982,-511.23,0.00036164,2]
[339994846,1728295846991,-500.0,0.00036164,2]
[339994847,1728295847001,-500.0,0.00036164,2]
[339994848,1728295847010,-619.93,0.00036164,2]
[339994849,1728295847019,-500.0,0.00036164,2]
[339994850,1728295847029,-500.0,0.00036164,2]
[339994851,1728295847038,-500.0,0.00036164,2]
[339994852,1728295847048,-500.0,0.00036164,2]
[339994853,1728295847058,-500.0,0.00036164,2]
[339994854,1728295847067,-530.54,0.00036164,2]
[339994855,1728295847077,-500.0,0.00036164,2]
[339994856,1728295847091,-500.0,0.00036164,2]
[339994857,1728295847101,-669.98,0.00036164,2]
[339994858,1728295847110,-500.0,0.00036164,2]
[339994859,1728295847122,-500.0,0.00036164,2]
[339994860,1728295847132,-1921.901947,0.00036164,7]
[339994861,1728295847142,-500.0,0.00036164,2]
[339994862,1728295847152,-618.29,0.00036164,2]
[339994863,1728295847162,-1921.901947,0.00036164,7]
[339994864,1728295847172,-526.83,0.00036164,2]
[339994865,1728295847181,-560.05,0.00036164,2]
[339994866,1728295847191,-500.0,0.00036164,2]
[339994867,1728295847201,-530.63,0.00036164,2]
[339994868,1728295847210,-500.0,0.00036164,2]
[339994869,1728295847220,-736.68,0.00036164,2]
[339994870,1728295847229,-500.0,0.00036164,2]
[339994871,1728295847238,-500.0,0.00036164,2]
[339994872,1728295847247,-500.0,0.00036164,2]
[339994873,1728295847256,-524.29,0.00036164,2]
[339994874,1728295847265,-500.0,0.00036164,2]
[339994875,1728295847274,-500.0,0.00036164,2]
[339994876,1728295847283,-500.0,0.00036164,2]
[339994877,1728295847292,-213.04288,0.00036164,7]
[339994878,1728295847302,-500.0,0.00036164,2]
[339994879,1728295847311,-500.0,0.00036164,2]
[339994880,1728295847320,-636.06,0.00036164,2]
[339994881,1728295847329,-889.03,0.00036164,2]
[339994882,1728295847340,-500.0,0.00036164,2]
[339994883,1728295847349,-239.40516521,0.00036164,2]
[339994884,1728295847358,-600.6,0.00036164,2]
[339994885,1728295847367,-500.0,0.00036164,2]
[339994886,1728295847376,-500.0,0.00036164,2]
[339994887,1728295847385,-810.09,0.00036164,2]
[339994888,1728295847395,-1346.29,0.00036164,2]
[339994889,1728295847403,-500.0,0.00036164,2]
[339994890,1728295847413,-654.7,0.00036164,2]
[339994891,1728295847421,-500.0,0.00036164,2]
[339994892,1728295847431,-500.0,0.00036164,2]
[339994893,1728295847440,-500.0,0.00036164,2]
[339994894,1728295847449,-500.0,0.00036164,2]
[339994895,1728295847459,-556.24,0.00036164,2]
[339994896,1728295847468,-500.0,0.00036164,2]
[339994897,1728295847477,-500.0,0.00036164,2]
[339994898,1728295847487,-500.0,0.00036164,2]
[339994899,1728295847496,-568.77,0.00036164,2]
[339994900,1728295847505,-605.87,0.00036164,2]
[339994901,1728295847514,-954.06,0.00036164,7]
[339994902,1728295847523,-500.0,0.00036164,2]
[339994903,1728295847532,-539.65,0.00036164,2]
[339994904,1728295847542,-150.0,0.00036173,2]
[339994905,1728295847551,-150.0,0.00036175,2]
[339994906,1728295847560,-150.0,0.00036178,2]
[339994907,1728295847570,-150.0,0.00036189,2]
[339994908,1728295847579,-150.0,0.00036191,2]
[339994909,1728295847590,-150.0,0.00036234,2]
[339994910,1728295847600,-460.91836493,0.00036239,2]
[339994911,1728295847610,-150.0,0.00036248,2]
[339994912,1728295847620,-150.0,0.00036259,2]
[339994913,1728295847630,-150.0,0.00036263,2]
[339994914,1728295847639,-150.0,0.00036267,2]
[339994915,1728295847649,-1500.0,0.00036274,2]
[339994916,1728295847659,-150.0,0.00036292,2]
[339994917,1728295847668,-150.0,0.00036307,2]
[339994918,1728295847678,-150.0,0.00036309,2]
[339994919,1728295847687,-150.0,0.00036319,2]
[339994920,1728295847698,-150.0,0.00036323,2]
[339994921,1728295847707,-150.0,0.00036337,2]
[339994922,1728295847717,-150.0,0.00036343,2]
[339994923,1728295847726,-150.0,0.00036369,2]
[339994924,1728295847735,-368.76908784,0.00036379,2]
[339994925,1728295847745,-150.0,0.00036384,2]
[339994926,1728295847754,-150.0,0.00036385,2]
[339994927,1728295847763,-150.0,0.00036402,2]
[339994928,1728295847772,-151.68958605,0.00036407,2]
[339994929,1728295847782,-150.0,0.00036426,2]
[339994930,1728295847791,-500.0,0.00036437,2]
[339994931,1728295847800,-500.0,0.00036438,2]
[339994932,1728295847809,-500.0,0.00036438,2]
[339994933,1728295847819,-500.0,0.00036438,2]
[339994934,1728295847828,-500.0,0.00036438,2]
[339994935,1728295847838,-151.0,0.00036438,7]
[339994936,1728295847847,-500.0,0.00036438,2]
[339994937,1728295847857,-500.0,0.00036438,2]
[339994938,1728295847866,-500.0,0.00036438,2]
[339994939,1728295847876,-879.25,0.00036438,2]
[339994940,1728295847885,-500.0,0.00036438,2]
[339994941,1728295847894,-500.0,0.00036438,2]
[339994942,1728295847902,-245.055532,0.00036438,7]
[339994943,1728295847911,-151.0,0.00036438,7]
[339994944,1728295847920,-500.0,0.00036438,2]
[339994945,1728295847929,-500.0,0.00036438,2]
[339994946,1728295847939,-832.07,0.00036438,2]
[339994947,1728295847947,-500.0,0.00036438,2]
[339994948,1728295847957,-500.0,0.00036438,2]
[339994949,1728295847966,-500.0,0.00036438,2]
[339994950,1728295847975,-500.0,0.00036438,2]
[339994951,1728295847984,-500.0,0.00036438,2]
[339994952,1728295847993,-500.0,0.00036438,2]
[339994953,1728295848002,-767.12,0.00036438,2]
[339994954,1728295848011,-1284.48,0.00036438,2]
[339994955,1728295848020,-500.0,0.00036438,2]
[339994956,1728295848029,-500.0,0.00036438,2]
[339994957,1728295848038,-500.0,0.00036438,2]
[339994958,1728295848048,-500.0,0.00036438,2]
[339994959,1728295848057,-500.0,0.00036438,2]
[339994960,1728295848066,-1116.95,0.00036438,2]
[339994961,1728295848075,-500.0,0.00036438,2]
[339994962,1728295848085,-500.0,0.00036438,2]
[339994963,1728295848094,-764.7,0.00036438,2]
[339994964,1728295848108,-500.0,0.00036438,2]
[339994965,1728295848117,-775.76,0.00036438,2]
[339994966,1728295848127,-500.0,0.00036438,2]
[339994967,1728295848136,-456.6229229,0.00036438,2]
[339994968,1728295848146,-500.0,0.00036438,2]
[339994969,1728295848155,-2242.98,0.00036438,2]
[339994970,1728295848164,-500.0,0.00036438,2]
[339994971,1728295848174,-500.0,0.00036438,2]
[339994972,1728295848186,-500.0,0.00036438,2]
[339994973,1728295848196,-500.0,0.00036438,2]
[339994974,1728295848205,-578.66,0.00036438,2]
[339994975,1728295848214,-497.04350288,0.00036438,2]
[339994976,1728295848224,-317.38,0.00036438,2]
[339994977,1728295848233,-500.0,0.00036438,2]
[339994978,1728295848242,-500.0,0.00036438,2]
[339994979,1728295848332,-500.0,0.00036438,2]
[339994980,1728295848353,-560.68,0.00036438,2]
[339994981,1728295848363,-500.0,0.00036438,2]
[339994982,1728295848373,-500.0,0.00036438,2]
[339994983,1728295848382,-500.0,0.00036438,2]
[339994984,1728295848391,-500.0,0.00036438,2]
[339994985,1728295848401,-500.0,0.00036438,2]
[339994986,1728295848410,-500.0,0.00036438,2]
[339994987,1728295848419,-500.0,0.00036438,2]
[339994988,1728295848428,-850.87,0.00036438,2]
[339994989,1728295848438,-500.0,0.00036438,2]
[339994990,1728295848447,-560.68,0.00036438,2]
[339994991,1728295848456,-500.0,0.00036438,2]
[339994992,1728295848465,-500.0,0.00036438,2]
[339994993,1728295848474,-500.0,0.00036438,2]
[339994994,1728295848483,-500.0,0.00036438,2]
[339994995,1728295848493,-500.0,0.00036438,2]
[339994996,1728295848502,-500.0,0.00036438,2]
[339994997,1728295848512,-500.0,0.00036438,2]
[339994998,1728295848521,-500.0,0.00036438,2]
[339994999,1728295848530,-500.0,0.00036438,2]
[339995000,1728295848540,-500.0,0.00036438,2]
[339995001,1728295848549,-500.0,0.00036438,2]
[339995002,1728295848559,-500.0,0.00036438,2]
[339995003,1728295848568,-3437.809723,0.00036438,7]
[339995004,1728295848578,-500.0,0.00036438,2]
[339995005,1728295848591,-500.0,0.00036438,2]
[339995006,1728295848600,-3437.809723,0.00036438,7]
[339995007,1728295848610,-500.0,0.00036438,2]
[339995008,1728295848620,-500.0,0.00036438,2]
[339995009,1728295848631,-589.58,0.00036438,2]
[339995010,1728295848640,-660.06,0.00036438,2]
[339995011,1728295848650,-500.0,0.00036438,2]
[339995012,1728295848659,-500.0,0.00036438,2]
[339995013,1728295848669,-500.0,0.00036438,2]
[339995014,1728295848678,-500.0,0.00036438,2]
[339995015,1728295848687,-500.0,0.00036438,2]
[339995016,1728295848697,-500.0,0.00036438,2]
[339995017,1728295848707,-500.0,0.00036438,2]
[339995018,1728295848717,-500.0,0.00036438,2]
[339995019,1728295848727,-500.0,0.00036438,2]
[339995020,1728295848736,-504.02,0.00036438,2]
[339995021,1728295848746,-500.0,0.00036438,2]
[339995022,1728295848755,-500.0,0.00036438,2]
[339995023,1728295848765,-500.0,0.00036438,2]
[339995024,1728295848775,-500.0,0.00036438,2]
[339995025,1728295848784,-500.0,0.00036438,2]
[339995026,1728295848793,-587.38,0.00036438,2]
[339995027,1728295848802,-10000.0,0.00036438,7]
[339995028,1728295848812,-500.0,0.00036438,2]
[339995029,1728295848822,-500.0,0.00036438,2]
[339995030,1728295848833,-10000.0,0.00036438,7]
[339995031,1728295848842,-10000.0,0.00036438,7]
[339995032,1728295848852,-500.0,0.00036438,2]
[339995033,1728295848861,-10000.0,0.00036438,7]
[339995034,1728295848871,-500.0,0.00036438,2]
[339995035,1728295848880,-10000.0,0.00036438,7]
[339995036,1728295848889,-711.71,0.00036438,2]
[339995037,1728295848899,-646.3,0.00036438,2]
[339995038,1728295848908,-500.0,0.00036438,2]
[339995039,1728295848916,-511.23,0.00036438,2]
[339995040,1728295848925,-500.0,0.00036438,2]
[339995041,1728295848935,-500.0,0.00036438,2]
[339995042,1728295848945,-619.93,0.00036438,2]
[339995043,1728295848954,-500.0,0.00036438,2]
[339995044,1728295848963,-500.0,0.00036438,2]
[339995045,1728295848972,-500.0,0.00036438,2]
[339995046,1728295848982,-500.0,0.00036438,2]
[339995047,1728295848991,-500.0,0.00036438,2]
[339995048,1728295849000,-530.54,0.00036438,2]
[339995049,1728295849009,-500.0,0.00036438,2]
[339995050,1728295849019,-500.0,0.00036438,2]
[339995051,1728295849028,-669.98,0.00036438,2]
[339995052,1728295849038,-500.0,0.00036438,2]
[339995053,1728295849047,-500.0,0.00036438,2]
[339995054,1728295849063,-1921.901947,0.00036438,7]
[339995055,1728295849073,-500.0,0.00036438,2]
[339995056,1728295849082,-618.29,0.00036438,2]
[339995057,1728295849092,-1921.901947,0.00036438,7]
[339995058,1728295849104,-526.83,0.00036438,2]
[339995059,1728295849113,-560.05,0.00036438,2]
[339995060,1728295849123,-500.0,0.00036438,2]
[339995061,1728295849133,-530.63,0.00036438,2]
[339995062,1728295849142,-500.0,0.00036438,2]
[339995063,1728295849151,-736.68,0.00036438,2]
[339995064,1728295849161,-500.0,0.00036438,2]
[339995065,1728295849171,-500.0,0.00036438,2]
[339995066,1728295849180,-500.0,0.00036438,2]
[339995067,1728295849190,-524.29,0.00036438,2]
[339995068,1728295849199,-500.0,0.00036438,2]
[339995069,1728295849208,-500.0,0.00036438,2]
[339995070,1728295849217,-500.0,0.00036438,2]
[339995071,1728295849227,-500.0,0.00036438,2]
[339995072,1728295849238,-500.0,0.00036438,2]
[339995073,1728295849247,-636.06,0.00036438,2]
[339995074,1728295849256,-889.03,0.00036438,2]
[339995075,1728295849266,-500.0,0.00036438,2]
[339995076,1728295849275,-600.6,0.00036438,2]
[339995077,1728295849285,-500.0,0.00036438,2]
[339995078,1728295849294,-500.0,0.00036438,2]
[339995079,1728295849303,-810.09,0.00036438,2]
[339995080,1728295849312,-1346.29,0.00036438,2]
[339995081,1728295849322,-500.0,0.00036438,2]
[339995082,1728295849332,-654.7,0.00036438,2]
[339995083,1728295849346,-500.0,0.00036438,2]
[339995084,1728295849356,-500.0,0.00036438,2]
[339995085,1728295849365,-500.0,0.00036438,2]
[339995086,1728295849375,-500.0,0.00036438,2]
[339995087,1728295849385,-556.24,0.00036438,2]
[339995088,1728295849395,-500.0,0.00036438,2]
[339995089,1728295849404,-500.0,0.00036438,2]
[339995090,1728295849414,-500.0,0.00036438,2]
[339995091,1728295849423,-568.77,0.00036438,2]
[339995092,1728295849432,-605.87,0.00036438,2]
[339995093,1728295849442,-954.06,0.00036438,7]
[339995094,1728295849451,-500.0,0.00036438,2]
[339995095,1728295849461,-539.65,0.00036438,2]
[339995096,1728295849470,-11292.086435,0.00036456,15]
[339995097,1728295849480,-150.0,0.00036459,2]
[339995098,1728295849489,-151.39686407,0.00036462,2]
[339995099,1728295849499,-150.0,0.00036479,2]
[339995100,1728295849508,-172.84,0.00036481,2]
[339995101,1728295849519,-150.0,0.00036491,2]
[339995102,1728295849528,-152.31735408,0.00036492,2]
[339995103,1728295849538,-150.0,0.00036492,2]
[339995104,1728295849548,-150.0,0.00036495,2]
[339995105,1728295849558,-150.0,0.00036496,2]
[339995106,1728295849567,-150.0,0.00036497,2]
[339995107,1728295849576,-169.29,0.00036514,2]
[339995108,1728295849587,-150.0,0.00036517,2]
[339995109,1728295849597,-150.0,0.00036536,2]
[339995110,1728295849607,-150.0,0.00036537,2]
[339995111,1728295849616,-150.0,0.00036538,2]
[339995112,1728295849626,-382.79,0.00036558,2]
[339995113,1728295849635,-150.0,0.00036565,2]
[339995114,1728295849645,-500.0,0.00036567,120]
[339995115,1728295849654,-150.0,0.00036579,2]
[339995116,1728295849664,-1500.0,0.00036602,2]
[339995117,1728295849674,-150.0,0.00036627,2]
[339995118,1728295849683,-150.0,0.00036637,2]
[339995119,1728295849693,-150.0,0.00036664,2]
[339995120,1728295849702,-150.0,0.00036665,2]
[339995121,1728295849711,-150.0,0.00036674,2]
[339995122,1728295849721,-150.0,0.00036685,2]
[339995123,1728295849730,-150.0,0.00036687,2]
[339995124,1728295849739,-150.0,0.00036695,2]
[339995125,1728295849748,-4042.41,0.000367,14]
[339995126,1728295849757,-10000.0,0.000367,7]
[339995127,1728295849767,-10000.0,0.000367,7]
[339995128,1728295849776,-10000.0,0.000367,7]
[339995129,1728295849786,-10000.0,0.000367,7]
[339995130,1728295849795,-1530.65117373,0.00036709,2]
[339995131,1728295849805,-500.0,0.00036711,2]
[339995132,1728295849814,-500.0,0.00036711,2]
[339995133,1728295849824,-500.0,0.00036712,2]
[339995134,1728295849835,-500.0,0.00036712,2]
[339995135,1728295849845,-620.94,0.00036712,2]
[339995136,1728295849854,-500.0,0.00036712,2]
[339995137,1728295849864,-151.0,0.00036712,7]
[339995138,1728295849873,-500.0,0.00036712,2]
[339995139,1728295849882,-500.0,0.00036712,2]
[339995140,1728295849891,-500.0,0.00036712,2]
[339995141,1728295849900,-879.25,0.00036712,2]
[339995142,1728295849910,-500.0,0.00036712,2]
[339995143,1728295849919,-500.0,0.00036712,2]
[339995144,1728295849928,-151.0,0.00036712,7]
[339995145,1728295849937,-500.0,0.00036712,2]
[339995146,1728295849946,-500.0,0.00036712,2]
[339995147,1728295849955,-832.07,0.00036712,2]
[339995148,1728295849964,-500.0,0.00036712,2]
[339995149,1728295849973,-500.0,0.00036712,2]
[339995150,1728295849982,-500.0,0.00036712,2]
[339995151,1728295849991,-500.0,0.00036712,2]
[339995152,1728295850000,-500.0,0.00036712,2]
[339995153,1728295850009,-500.0,0.00036712,2]
[339995154,1728295850018,-767.12,0.00036712,2]
[339995155,1728295850027,-1284.48,0.00036712,2]
[339995156,1728295850037,-500.0,0.00036712,2]
[339995157,1728295850047,-500.0,0.00036712,2]
[339995158,1728295850055,-500.0,0.00036712,2]
[339995159,1728295850064,-500.0,0.00036712,2]
[339995160,1728295850074,-500.0,0.00036712,2]
[339995161,1728295850085,-1116.95,0.00036712,2]
[339995162,1728295850094,-500.0,0.00036712,2]
[339995163,1728295850107,-500.0,0.00036712,2]
[339995164,1728295850116,-764.7,0.00036712,2]
[339995165,1728295850126,-500.0,0.00036712,2]
[339995166,1728295850135,-775.76,0.00036712,2]
[339995167,1728295850146,-500.0,0.00036712,2]
[339995168,1728295850155,-500.0,0.00036712,2]
[339995169,1728295850165,-2242.98,0.00036712,2]
[339995170,1728295850174,-500.0,0.00036712,2]
[339995171,1728295850185,-500.0,0.00036712,2]
[339995172,1728295850196,-500.0,0.00036712,2]
[339995173,1728295850207,-500.0,0.00036712,2]
[339995174,1728295850216,-578.66,0.00036712,2]
[339995175,1728295850225,-317.38,0.00036712,2]
[339995176,1728295850234,-500.0,0.00036712,2]
[339995177,1728295850244,-500.0,0.00036712,2]
[339995178,1728295850253,-500.0,0.00036712,2]
[339995179,1728295850263,-560.68,0.00036712,2]
[339995180,1728295850272,-500.0,0.00036712,2]
[339995181,1728295850282,-500.0,0.00036712,2]
[339995182,1728295850291,-500.0,0.00036712,2]
[339995183,1728295850300,-500.0,0.00036712,2]
[339995184,1728295850309,-500.0,0.00036712,2]
[339995185,1728295850318,-500.0,0.00036712,2]
[339995186,1728295850327,-500.0,0.00036712,2]
[339995187,1728295850340,-850.87,0.00036712,2]
[339995188,1728295850350,-500.0,0.00036712,2]
[339995189,1728295850359,-560.68,0.00036712,2]
[339995190,1728295850369,-500.0,0.00036712,2]
[339995191,1728295850378,-500.0,0.00036712,2]
[339995192,1728295850387,-500.0,0.00036712,2]
[339995193,1728295850397,-500.0,0.00036712,2]
[339995194,1728295850406,-500.0,0.00036712,2]
[339995195,1728295850497,-500.0,0.00036712,2]
[339995196,1728295850506,-500.0,0.00036712,2]
[339995197,1728295850515,-500.0,0.00036712,2]
[339995198,1728295850524,-500.0,0.00036712,2]
[339995199,1728295850533,-500.0,0.00036712,2]
[339995200,1728295850543,-500.0,0.00036712,2]
[339995201,1728295850552,-500.0,0.00036712,2]
[339995202,1728295850561,-3437.809723,0.00036712,7]
[339995203,1728295850570,-500.0,0.00036712,2]
[339995204,1728295850580,-500.0,0.00036712,2]
[339995205,1728295850590,-3437.809723,0.00036712,7]
[339995206,1728295850599,-500.0,0.00036712,2]
[339995207,1728295850609,-500.0,0.00036712,2]
[339995208,1728295850619,-589.58,0.00036712,2]
[339995209,1728295850629,-660.06,0.00036712,2]
[339995210,1728295850639,-500.0,0.00036712,2]
[339995211,1728295850649,-500.0,0.00036712,2]
[339995212,1728295850659,-500.0,0.00036712,2]
[339995213,1728295850668,-500.0,0.00036712,2]
[339995214,1728295850678,-500.0,0.00036712,2]
[339995215,1728295850688,-500.0,0.00036712,2]
[339995216,1728295850697,-500.0,0.00036712,2]
[339995217,1728295850707,-500.0,0.00036712,2]